bitfinex/quotes_SOLUSD_20250413
["timestamp","ask_amount","ask_price","bid_price","bid_amount"]
[1744569006952,33.5965,131.64,131.59,39.20485135]
[1744569007145,33.5965,131.64,131.59,46.80405135]
[1744569007749,33.5965,131.64,131.57,8.92]
[1744569007750,39.20485135,131.62,131.57,48.12485135]
[1744569008058,39.20485135,131.62,131.57,55.72525135]
[1744569008265,39.63133606,131.63,131.57,55.72525135]
[1744569008872,7.5976,131.62,131.57,55.72525135]
[1744569012169,101.8885,131.66,131.6,39.20485135]
[1744569012170,122.10485135,131.66,131.6,39.20485135]
[1744569012369,122.10485135,131.66,131.61,39.20485135]
[1744569012859,82.9,131.66,131.61,39.20485135]
[1744569013257,39.63133606,131.64,131.59,39.20485135]
[1744569013459,65.20485135,131.6,131.53,7.6028]
[1744569013671,39.20485135,131.58,131.53,46.80765135]
[1744569013855,39.20485135,131.58,131.53,7.6028]
[1744569014050,39.20485135,131.58,131.53,46.80765135]
[1744569014251,39.20485135,131.55,131.54,2.80978902]
[1744569014451,39.20485135,131.57,131.54,2.80978902]
[1744569014664,65.20485135,131.56,131.54,2.80978902]
[1744569014870,65.20485135,131.56,131.49,7.6051]
[1744569015061,65.20485135,131.56,131.51,39.20485135]
[1744569015257,26.0,131.56,131.49,26.6179]
[1744569015460,82.9,131.6,131.54,39.20485135]
[1744569015681,6.70132314,131.61,131.56,39.20485135]
[1744569015682,14.0154,131.61,131.56,39.20485135]
[1744569015880,53.22025135,131.61,131.56,39.20485135]
[1744569016375,6.417,131.61,131.58,39.20485135]
[1744569016573,7.5977,131.62,131.58,39.20485135]
[1744569016977,6.191,131.64,131.6,39.20485135]
[1744569017282,84.4256,131.67,131.62,39.20485135]
[1744569017590,46.80015135,131.66,131.61,39.20485135]
[1744569017880,39.20485135,131.65,131.6,39.20485135]
[1744569018067,39.20485135,131.63,131.58,39.20485135]
[1744569018269,39.34701292,131.64,131.58,39.20485135]
[1744569018456,0.42648471,131.65,131.61,39.20485135]
[1744569018966,39.63133606,131.65,131.6,39.20485135]
[1744569019777,47.22773606,131.65,131.6,46.80355135]
[1744569020362,47.22773606,131.65,131.6,39.20485135]
[1744569021685,47.22773606,131.65,131.6,46.80345135]
[1744569021980,47.22773606,131.65,131.6,39.20485135]
[1744569022180,47.22773606,131.65,131.59,7.5991]
[1744569022181,39.20485135,131.64,131.59,39.20485135]
[1744569022577,47.22773606,131.65,131.6,39.20485135]
[1744569022981,65.20485135,131.61,131.55,39.20485135]
[1744569023282,26.0,131.6,131.57,25.87749208]
[1744569023473,89.044,131.63,131.59,25.87749208]
[1744569023788,6.144,131.66,131.62,25.87749208]
[1744569024166,1.5256,131.67,131.63,25.87749208]
[1744569024362,27.40309208,131.67,131.62,25.87749208]
[1744569024565,34.99779208,131.67,131.62,25.87749208]
[1744569024762,34.99779208,131.67,131.58,18.79181043]
[1744569024979,34.99779208,131.67,131.62,25.87749208]
[1744569025480,34.99779208,131.67,131.62,33.47509208]
[1744569025660,9.1203,131.67,131.62,33.47509208]
[1744569025860,1.5256,131.67,131.62,33.47509208]
[1744569026764,1.5256,131.67,131.63,25.87749208]
[1744569027167,9.1203,131.67,131.62,33.47509208]
[1744569027683,25.87749208,131.66,131.61,25.87749208]
[1744569027886,25.87749208,131.66,131.61,33.47559208]
[1744569028193,25.87749208,131.62,131.57,25.87749208]
[1744569028572,25.87749208,131.6,131.55,33.47889208]
[1744569028767,6.57048471,131.62,131.54,8.92]
[1744569028768,25.87749208,131.59,131.54,34.79749208]
[1744569028974,25.87749208,131.6,131.55,25.87749208]
[1744569029284,25.87749208,131.6,131.56,2.81885225]
[1744569029687,25.87749208,131.59,131.56,2.81885225]
[1744569030074,25.87749208,131.6,131.56,2.81885225]
[1744569030383,25.87749208,131.59,131.54,8.92]
[1744569030587,25.87749208,131.58,131.54,8.92]
[1744569030768,25.87749208,131.58,131.53,25.87749208]
[1744569030969,25.87749208,131.58,131.54,2.81892691]
[1744569031262,1.5166,131.64,131.57,25.87749208]
[1744569031469,6.144,131.66,131.63,25.87749208]
[1744569031695,29.64314518,131.66,131.63,25.87749208]
[1744569031891,29.64314518,131.66,131.62,25.87749208]
[1744569033092,37.23854518,131.66,131.62,25.87749208]
[1744569033292,23.49914518,131.66,131.65,25.87749208]
[1744569034096,23.49914518,131.66,131.64,25.87749208]
[1744569034391,33.47119208,131.69,131.64,25.87749208]
[1744569035090,25.87749208,131.7,131.65,25.87749208]
[1744569035293,25.87749208,131.7,131.62,8.9]
[1744569035294,0.03,131.71,131.67,25.87749208]
[1744569035495,7.6226,131.71,131.66,25.87749208]
[1744569035802,33.50009208,131.71,131.66,25.87749208]
[1744569036174,25.87749208,131.69,131.63,7.597]
[1744569036382,0.03,131.71,131.67,25.87749208]
[1744569036700,0.03,131.71,131.68,25.87749208]
[1744569037678,0.03,131.71,131.69,25.87749208]
[1744569037872,0.03,131.71,131.7,25.87749208]
[1744569039189,0.03,131.71,131.7,33.47049208]
[1744569039491,0.03,131.71,131.7,52.26230251]
[1744569039786,0.03,131.71,131.7,55.0767356]
[1744569040398,0.03,131.72,131.71,0.28432314]
[1744569040713,0.03,131.72,131.71,26.16181522]
[1744569041069,0.03,131.72,131.71,28.97624831]
[1744569041588,0.03,131.72,131.71,36.28432517]
[1744569041763,0.03,131.73,131.71,55.36045874]
[1744569041964,0.03,131.79,131.75,26.0]
[1744569042168,0.03,131.79,131.78,25.87749208]
[1744569042582,0.03,131.79,131.76,8.9]
[1744569042788,0.03,131.78,131.76,8.9]
[1744569042987,0.03,131.78,131.77,25.87749208]
[1744569043691,0.03,131.78,131.77,52.25820251]
[1744569045180,0.03,131.78,131.77,52.54252565]
[1744569045787,0.03,131.78,131.77,33.46639208]
[1744569045986,0.03,131.78,131.77,52.25820251]
[1744569046197,0.03,131.78,131.77,52.54252565]
[1744569047183,0.03,131.78,131.77,33.46639208]
[1744569047404,0.03,131.78,131.77,25.87749208]
[1744569047704,0.03,131.78,131.77,44.66930251]
[1744569048002,0.03,131.81,131.79,0.28432314]
[1744569048184,0.03,131.81,131.8,25.87749208]
[1744569048500,0.03,131.81,131.8,44.66930251]
[1744569048682,0.03,131.81,131.8,25.87749208]
[1744569049187,0.03,131.81,131.8,44.95362565]
[1744569050003,0.03,131.81,131.8,25.87749208]
[1744569050796,0.03,131.81,131.8,44.66930251]
[1744569051299,0.03,131.81,131.8,25.87749208]
[1744569051607,0.03,131.81,131.8,44.95362565]
[1744569051782,0.03,131.81,131.8,52.54082565]
[1744569052387,2.6088609,131.85,131.82,0.28432314]
[1744569052588,2.6088609,131.85,131.84,44.66930251]
[1744569053007,2.6088609,131.85,131.84,70.83111773]
[1744569053504,2.6088609,131.85,131.84,70.54679459]
[1744569053905,2.6088609,131.85,131.84,78.13169459]
[1744569054102,2.6088609,131.85,131.84,78.41601773]
[1744569054407,2.6088609,131.85,131.84,33.46239208]
[1744569054789,2.6088609,131.85,131.84,25.87749208]
[1744569055109,2.6088609,131.85,131.84,78.41601773]
[1744569055684,2.6088609,131.85,131.84,25.87749208]
[1744569056919,2.6088609,131.85,131.83,8.88]
[1744569056920,2.6088609,131.85,131.81,25.87749208]
[1744569057092,2.6088609,131.85,131.82,25.87749208]
[1744569060191,2.6088609,131.85,131.83,25.87749208]
[1744569060913,2.6088609,131.85,131.79,27.50964886]
[1744569061102,10.3339609,131.85,131.82,25.87749208]
[1744569061616,25.87749208,131.84,131.79,8.86]
[1744569061803,25.87749208,131.82,131.77,25.87749208]
[1744569061994,7.5866,131.81,131.77,25.87749208]
[1744569062194,33.5863,131.82,131.78,25.87749208]
[1744569062409,33.5863,131.82,131.77,25.87749208]
[1744569062609,33.5863,131.82,131.78,25.87749208]
[1744569063232,10.3339609,131.85,131.79,25.87749208]
[1744569063401,10.3339609,131.85,131.83,25.87749208]
[1744569063593,10.3339609,131.85,131.84,25.87749208]
[1744569063594,2.6088609,131.85,131.84,25.87749208]
[1744569063808,2.6088609,131.85,131.84,51.75498416]
[1744569064012,2.6088609,131.85,131.84,33.46239208]
[1744569064906,2.6088609,131.85,131.84,25.87749208]
[1744569067394,2.6088609,131.85,131.83,8.86]
[1744569067601,10.1931609,131.85,131.82,25.87749208]
[1744569068419,2.6088609,131.85,131.83,25.87749208]
[1744569068794,10.1934609,131.85,131.82,25.87749208]
[1744569069007,6.1796,131.84,131.79,34.73749208]
[1744569069209,6.1796,131.84,131.77,25.87749208]
[1744569069210,25.87749208,131.82,131.77,25.87749208]
[1744569070317,7.5866,131.81,131.77,25.87749208]
[1744569071217,7.5866,131.81,131.74,0.063]
[1744569071218,1.5864,131.77,131.74,0.063]
[1744569071513,51.87749208,131.75,131.74,0.063]
[1744569072093,6.0351,131.76,131.74,0.063]
[1744569072319,1.5864,131.77,131.74,25.94049208]
[1744569072616,6.0351,131.8,131.74,25.94049208]
[1744569072617,31.91259208,131.8,131.75,25.87749208]
[1744569073319,25.87749208,131.77,131.74,0.063]
[1744569073522,25.87749208,131.78,131.74,0.063]
[1744569073708,25.87749208,131.79,131.74,25.94049208]
[1744569073893,26.0,131.77,131.75,25.87749208]
[1744569074092,26.0,131.77,131.74,0.063]
[1744569074296,33.5891,131.77,131.74,0.063]
[1744569074928,59.46659208,131.77,131.74,0.063]
[1744569075221,72.72988169,131.77,131.74,0.063]
[1744569075532,6.0351,131.8,131.76,39.14078169]
[1744569075824,52.76318169,131.8,131.75,39.14078169]
[1744569076323,13.6224,131.8,131.75,39.14078169]
[1744569076715,13.6224,131.8,131.77,39.14078169]
[1744569077023,52.76318169,131.8,131.75,39.14078169]
[1744569077708,39.14078169,131.79,131.74,39.20378169]
[1744569078418,6.0351,131.8,131.76,39.14078169]
[1744569078924,6.0351,131.8,131.75,39.14078169]
[1744569079097,39.14078169,131.79,131.74,39.20378169]
[1744569079518,52.76318169,131.8,131.74,39.20378169]
[1744569080103,13.6224,131.8,131.75,39.14078169]
[1744569080745,52.76318169,131.8,131.75,39.14078169]
[1744569080906,39.14078169,131.79,131.74,39.20378169]
[1744569081425,39.14078169,131.79,131.74,0.063]
[1744569081601,39.14078169,131.76,131.74,0.063]
[1744569082120,26.0,131.76,131.74,0.063]
[1744569082528,7.5901,131.75,131.74,0.063]
[1744569083728,33.5897,131.76,131.74,0.063]
[1744569084829,39.14078169,131.75,131.74,0.063]
[1744569085122,39.5672664,131.75,131.74,0.063]
[1744569085332,0.42648471,131.75,131.74,0.063]
[1744569085501,39.5672664,131.75,131.74,0.063]
[1744569085707,39.14078169,131.75,131.74,0.063]
[1744569085908,72.73048169,131.76,131.74,0.063]
[1744569086109,39.14078169,131.75,131.74,0.063]
[1744569086528,46.73088169,131.75,131.74,0.063]
[1744569087123,47.1573664,131.75,131.74,0.063]
[1744569087512,48.6659664,131.75,131.74,0.063]
[1744569087731,9.0987,131.75,131.74,0.063]
[1744569089224,48.23948169,131.75,131.74,0.063]
[1744569089843,1.5086,131.75,131.74,0.063]
[1744569090143,9.0966,131.79,131.74,39.20378169]
[1744569090341,1.5086,131.79,131.76,39.14078169]
[1744569090544,7.5861,131.82,131.78,39.14078169]
[1744569091040,19.22683148,131.82,131.77,39.14078169]
[1744569091642,11.64073148,131.82,131.78,39.14078169]
[1744569091829,11.64073148,131.82,131.81,39.14078169]
[1744569092540,10.1933609,131.85,131.81,39.14078169]
[1744569092720,10.1933609,131.85,131.82,39.14078169]
[1744569092921,2.6088609,131.85,131.82,39.14078169]
[1744569093132,2.6088609,131.85,131.84,39.14078169]
[1744569093728,2.6088609,131.85,131.81,39.14078169]
[1744569094815,10.1931609,131.85,131.81,39.14078169]
[1744569095336,10.1931609,131.85,131.81,25.76862133]
[1744569096541,2.6088609,131.85,131.81,25.76862133]
[1744569096749,36.1932609,131.85,131.81,25.76862133]
[1744569097150,36.1932609,131.85,131.8,25.76862133]
[1744569097345,7.5855,131.83,131.78,25.76862133]
[1744569097651,33.35412133,131.83,131.78,25.76862133]
[1744569098038,33.35412133,131.83,131.76,8.84]
[1744569098239,25.76862133,131.82,131.77,25.76862133]
[1744569098552,39.61282133,131.83,131.78,25.76862133]
[1744569099460,13.8442,131.83,131.78,25.76862133]
[1744569099635,39.61282133,131.83,131.78,25.76862133]
[1744569099832,6.2587,131.83,131.78,25.76862133]
[1744569100037,28.6088609,131.85,131.82,25.76862133]
[1744569100038,2.6088609,131.85,131.82,25.76862133]
[1744569100334,26.0,131.84,131.81,25.76862133]
[1744569100539,26.0,131.84,131.8,25.76862133]
[1744569100735,51.76862133,131.84,131.79,25.76862133]
[1744569100940,26.0,131.84,131.8,25.76862133]
[1744569101352,2.6088609,131.85,131.83,25.76862133]
[1744569101654,2.6088609,131.85,131.84,25.76862133]
[1744569101961,2.6088609,131.85,131.82,25.76862133]
[1744569102249,2.6088609,131.85,131.8,7.5872]
[1744569102250,2.6088609,131.85,131.83,25.76862133]
[1744569102450,2.6088609,131.85,131.84,25.76862133]
[1744569103545,2.6088609,131.85,131.8,7.5872]
[1744569103740,10.1932609,131.85,131.81,25.76862133]
[1744569104142,25.76862133,131.84,131.79,25.76862133]
[1744569104332,25.76862133,131.84,131.78,25.76862133]
[1744569104533,25.76862133,131.83,131.78,25.76862133]
[1744569104737,25.76862133,131.8,131.74,0.063]
[1744569104964,25.76862133,131.79,131.74,25.83162133]
[1744569105174,25.76862133,131.79,131.74,33.42222133]
[1744569105340,25.76862133,131.79,131.74,0.063]
[1744569105537,7.5884,131.78,131.74,0.063]
[1744569105934,33.35702133,131.78,131.74,0.063]
[1744569106138,25.76862133,131.77,131.74,0.063]
[1744569106352,25.76862133,131.76,131.74,0.063]
[1744569106546,26.19510604,131.75,131.74,0.063]
[1744569107152,44.8447549,131.75,131.74,0.063]
[1744569107549,0.42648471,131.74,131.73,0.063]
[1744569107750,32.20240604,131.74,131.73,0.063]
[1744569107956,26.42648471,131.7,131.68,0.063]
[1744569108241,25.76862133,131.69,131.68,0.063]
[1744569108847,26.42648471,131.7,131.68,0.063]
[1744569108848,52.19510604,131.7,131.68,0.063]
[1744569109566,7.5935,131.69,131.68,0.063]
[1744569110263,26.0,131.7,131.68,0.063]
[1744569110571,33.593,131.7,131.68,0.063]
[1744569110754,59.36162133,131.7,131.68,0.063]
[1744569111148,33.593,131.7,131.68,0.063]
[1744569111447,108.66862133,131.73,131.68,25.83162133]
[1744569111652,33.36002133,131.73,131.68,25.83162133]
[1744569111958,7.5914,131.73,131.69,25.76862133]
[1744569112159,25.76862133,131.76,131.71,25.76862133]
[1744569112346,0.14216157,131.76,131.72,25.76862133]
[1744569112549,0.14216157,131.76,131.69,25.76862133]
[1744569112550,25.76862133,131.75,131.69,25.76862133]
[1744569112852,25.76862133,131.73,131.68,25.83162133]
[1744569113063,26.0,131.73,131.69,25.76862133]
[1744569113264,26.0,131.73,131.7,25.76862133]
[1744569114259,26.0,131.73,131.69,25.76862133]
[1744569114570,26.0,131.73,131.68,0.063]
[1744569114571,25.76862133,131.72,131.68,0.063]
[1744569115364,26.0,131.73,131.7,25.76862133]
[1744569115673,33.35772133,131.77,131.72,25.76862133]
[1744569116984,25.76862133,131.76,131.71,25.76862133]
[1744569117384,7.5891,131.77,131.72,25.76862133]
[1744569117885,33.35772133,131.77,131.71,25.76862133]
[1744569118180,25.76862133,131.76,131.71,25.76862133]
[1744569118384,26.0,131.74,131.7,25.76862133]
[1744569119381,26.0,131.74,131.71,25.76862133]
[1744569120376,33.5907,131.74,131.69,25.76862133]
[1744569120800,26.0,131.74,131.71,25.76862133]
[1744569120968,26.0,131.73,131.71,25.76862133]
[1744569121167,26.0,131.73,131.68,7.6569]
[1744569121484,26.0,131.73,131.68,33.42572133]
[1744569121674,33.5918,131.73,131.68,25.83162133]
[1744569121982,33.5918,131.73,131.68,33.42572133]
[1744569122184,26.0,131.73,131.69,25.76862133]
[1744569122374,26.0,131.73,131.7,25.76862133]
[1744569122898,26.0,131.72,131.69,25.76862133]
[1744569123073,25.76862133,131.73,131.68,25.83162133]
[1744569123267,26.0,131.72,131.68,33.42572133]
[1744569123689,33.5919,131.72,131.68,25.83162133]
[1744569124573,26.0,131.74,131.69,25.76862133]
[1744569124773,26.0,131.74,131.7,25.76862133]
[1744569124976,26.0,131.74,131.69,25.76862133]
[1744569125488,26.0,131.74,131.7,25.76862133]
[1744569125666,7.5896,131.76,131.71,25.76862133]
[1744569126073,25.70308471,131.78,131.73,25.76862133]
[1744569126074,6.3043,131.78,131.73,25.76862133]
[1744569126273,9.23,131.8,131.76,25.76862133]
[1744569127597,25.76862133,131.78,131.73,25.76862133]
[1744569127803,9.65648471,131.8,131.71,25.76862133]
[1744569127804,25.76862133,131.76,131.71,25.76862133]
[1744569128091,25.76862133,131.72,131.68,0.063]
[1744569128297,25.76862133,131.69,131.68,0.063]
[1744569128592,26.42648471,131.67,131.66,0.063]
[1744569128774,51.76862133,131.67,131.66,0.063]
[1744569129274,39.6414732,131.67,131.66,0.063]
[1744569129796,47.2361732,131.67,131.66,0.063]
[1744569130891,26.0,131.67,131.66,0.063]
[1744569131274,39.21498849,131.7,131.66,0.063]
[1744569131477,46.80738849,131.71,131.66,39.27798849]
[1744569131676,46.80738849,131.71,131.66,0.063]
[1744569131882,46.80838849,131.7,131.66,0.063]
[1744569132199,7.5934,131.7,131.66,0.063]
[1744569132399,46.80568849,131.74,131.69,39.21498849]
[1744569132694,11.64073148,131.76,131.73,39.21498849]
[1744569132994,11.64073148,131.76,131.75,39.21498849]
[1744569133492,7.5895,131.76,131.71,39.21498849]
[1744569133675,7.72996157,131.79,131.73,39.21498849]
[1744569133878,7.5878,131.79,131.75,39.21498849]
[1744569134074,7.5878,131.79,131.7,26.5755]
[1744569134293,20.90782314,131.81,131.76,39.21498849]
[1744569134294,7.5874,131.8,131.76,39.21498849]
[1744569135806,46.80238849,131.8,131.74,39.21498849]
[1744569136004,39.21498849,131.79,131.74,39.21498849]
[1744569136185,46.80238849,131.8,131.75,39.21498849]
[1744569136501,7.5874,131.8,131.75,39.21498849]
[1744569136675,46.80238849,131.8,131.75,39.21498849]
[1744569138421,7.5867,131.81,131.76,39.21498849]
[1744569138590,7.5867,131.81,131.77,39.21498849]
[1744569139999,7.5862,131.82,131.78,39.21498849]
[1744569140593,7.6156,131.83,131.78,39.21498849]
[1744569140906,46.83058849,131.83,131.78,39.21498849]
[1744569141619,39.21498849,131.81,131.75,39.21498849]
[1744569141819,26.0,131.8,131.75,39.21498849]
[1744569142105,26.5794,131.83,131.77,39.21498849]
[1744569142409,65.79438849,131.83,131.78,39.21498849]
[1744569143405,39.21498849,131.82,131.77,39.21498849]
[1744569144613,7.5866,131.81,131.77,39.21498849]
[1744569145501,7.5862,131.82,131.78,39.21498849]
[1744569145832,46.80118849,131.82,131.77,39.21498849]
[1744569146192,7.5862,131.82,131.77,39.21498849]
[1744569146514,7.5862,131.82,131.78,39.21498849]
[1744569147321,7.5862,131.82,131.77,46.80368849]
[1744569147621,7.6157,131.83,131.78,46.80328849]
[1744569147790,7.6157,131.83,131.79,39.21498849]
[1744569147997,7.6157,131.83,131.75,7.5898]
[1744569147998,46.83068849,131.83,131.75,7.5898]
[1744569148316,39.21498849,131.82,131.76,39.21498849]
[1744569148997,65.21498849,131.8,131.75,39.21498849]
[1744569149303,65.79448849,131.83,131.77,39.21498849]
[1744569149507,46.83068849,131.83,131.78,39.21498849]
[1744569150392,7.6157,131.83,131.79,39.21498849]
[1744569150791,0.03,131.83,131.8,39.21498849]
[1744569150991,0.03,131.83,131.82,39.21498849]
[1744569151209,0.03,131.83,131.82,25.76548158]
[1744569151393,0.03,131.83,131.81,25.76548158]
[1744569151711,0.03,131.83,131.82,25.76548158]
[1744569151913,0.03,131.83,131.81,25.76548158]
[1744569152595,0.03,131.83,131.8,25.76548158]
[1744569152794,25.79548158,131.83,131.77,25.76548158]
[1744569152994,51.76548158,131.82,131.77,25.76548158]
[1744569153610,26.0,131.82,131.78,25.76548158]
[1744569153815,59.35178158,131.82,131.74,18.79181043]
[1744569154016,59.35178158,131.82,131.77,25.76548158]
[1744569154319,78.31698158,131.82,131.76,25.76548158]
[1744569155120,59.35178158,131.82,131.77,25.76548158]
[1744569155423,7.6157,131.83,131.79,25.76548158]
[1744569155616,0.03,131.83,131.81,25.76548158]
[1744569156015,0.03,131.83,131.8,25.76548158]
[1744569157521,0.03,131.83,131.79,25.76548158]
[1744569158427,0.03,131.83,131.8,25.76548158]
[1744569159423,0.03,131.83,131.81,25.76548158]
[1744569159621,0.03,131.83,131.8,25.76548158]
[1744569159812,0.03,131.83,131.82,25.76548158]
[1744569164335,0.03,131.83,131.79,8.8]
[1744569164517,0.03,131.83,131.79,25.76548158]
[1744569164714,25.76548158,131.82,131.75,8.8]
[1744569164917,0.03,131.83,131.76,25.76548158]
[1744569164918,25.76548158,131.81,131.76,25.76548158]
[1744569165817,25.76548158,131.82,131.77,25.76548158]
[1744569166012,25.76548158,131.82,131.75,16.3898]
[1744569166013,9.0877,131.81,131.75,16.3898]
[1744569166210,9.0877,131.81,131.75,8.8]
[1744569166415,34.85318158,131.81,131.75,8.8]
[1744569166621,9.0877,131.81,131.77,25.76548158]
[1744569166924,34.85318158,131.81,131.76,25.76548158]
[1744569167628,34.85318158,131.81,131.75,16.39]
[1744569167939,34.85318158,131.81,131.76,25.76548158]
[1744569168351,25.76548158,131.8,131.75,34.56548158]
[1744569168535,25.76548158,131.8,131.75,25.76548158]
[1744569168930,9.0877,131.81,131.77,25.76548158]
[1744569169112,9.0877,131.81,131.78,25.76548158]
[1744569169314,7.5866,131.81,131.76,25.76548158]
[1744569170040,7.5861,131.82,131.73,18.79181043]
[1744569170224,7.5861,131.82,131.78,25.76548158]
[1744569170934,33.35158158,131.82,131.77,25.76548158]
[1744569171935,52.31678158,131.82,131.77,25.76548158]
[1744569172114,33.35268158,131.8,131.75,25.76548158]
[1744569173232,7.5872,131.8,131.76,25.76548158]
[1744569173436,25.79548158,131.83,131.77,25.76548158]
[1744569174034,7.5872,131.8,131.76,25.76548158]
[1744569174226,7.5872,131.8,131.74,7.5905]
[1744569174227,7.5872,131.8,131.75,25.76548158]
[1744569175868,25.76548158,131.78,131.72,7.5916]
[1744569176145,25.76548158,131.78,131.73,25.76548158]
[1744569177745,25.76548158,131.78,131.72,7.5916]
[1744569177950,7.5889,131.77,131.73,25.76548158]
[1744569178454,1.6156,131.79,131.76,25.76548158]
[1744569178626,6.3601,131.8,131.76,25.76548158]
[1744569179053,6.3601,131.8,131.75,25.76548158]
[1744569179225,6.3601,131.8,131.74,25.76548158]
[1744569179226,25.76548158,131.79,131.74,25.76548158]
[1744569179743,25.76548158,131.78,131.73,34.54548158]
[1744569179947,7.5884,131.78,131.73,42.13668158]
[1744569180135,39.71328158,131.8,131.75,25.76548158]
[1744569180549,13.9478,131.8,131.75,25.76548158]
[1744569180755,39.71328158,131.8,131.75,25.76548158]
[1744569181130,25.76548158,131.79,131.74,25.76548158]
[1744569181843,7.5884,131.78,131.74,25.76548158]
[1744569182154,32.12558158,131.8,131.75,25.76548158]
[1744569182324,39.71308158,131.8,131.74,25.76548158]
[1744569182945,39.71308158,131.8,131.75,2.8140134]
[1744569183929,39.71308158,131.8,131.74,33.35608158]
[1744569184862,25.76548158,131.79,131.74,25.76548158]
[1744569185041,25.76548158,131.78,131.73,34.54548158]
[1744569185240,59.10766629,131.8,131.74,28.57994682]
[1744569185445,39.71308158,131.8,131.75,25.76548158]
[1744569185636,13.9476,131.8,131.75,25.76548158]
[1744569186427,6.3601,131.8,131.75,33.35538158]
[1744569186631,6.3601,131.8,131.76,25.76548158]
[1744569186864,13.9474,131.8,131.76,25.76548158]
[1744569187748,13.9474,131.8,131.76,33.35498158]
[1744569187950,13.9474,131.8,131.76,25.76548158]
[1744569189162,15.6482,131.83,131.79,25.76548158]
[1744569189837,41.41368158,131.83,131.78,25.76548158]
[1744569190037,25.76548158,131.81,131.75,33.35558158]
[1744569190344,25.76548158,131.81,131.75,7.5901]
[1744569190552,19.07613357,131.82,131.75,7.5901]
[1744569190752,19.07613357,131.82,131.73,8.78]
[1744569190753,25.76548158,131.8,131.74,25.76548158]
[1744569190955,25.76548158,131.8,131.75,28.58087391]
[1744569191158,25.76548158,131.78,131.75,2.81539233]
[1744569191549,25.76548158,131.76,131.75,2.81539233]
[1744569191766,52.92081515,131.76,131.75,2.81539233]
[1744569192064,60.51031515,131.76,131.7,25.76548158]
[1744569192260,25.76548158,131.75,131.7,25.76548158]
[1744569192465,25.76548158,131.74,131.69,25.76548158]
[1744569192645,25.76548158,131.74,131.7,2.81709037]
[1744569192850,41.43418158,131.76,131.71,25.76548158]
[1744569193377,15.6687,131.76,131.7,28.58257195]
[1744569193667,41.43418158,131.76,131.7,25.76548158]
[1744569194674,25.76548158,131.75,131.7,25.76548158]
[1744569195080,25.76548158,131.75,131.69,25.76548158]
[1744569195672,25.76548158,131.73,131.67,25.76548158]
[1744569196051,25.76548158,131.73,131.66,0.063]
[1744569196052,25.76548158,131.7,131.66,0.063]
[1744569196452,33.35898158,131.7,131.66,0.063]
[1744569196876,33.58808158,131.69,131.66,0.063]
[1744569197080,25.76548158,131.68,131.66,0.063]
[1744569197747,25.76548158,131.67,131.66,0.063]
[1744569198565,33.36018158,131.67,131.66,0.063]
[1744569198762,52.43631515,131.67,131.66,0.063]
[1744569202464,25.76548158,131.66,131.65,0.063]
[1744569203188,26.20733848,131.66,131.65,0.063]
[1744569203478,33.80263848,131.66,131.65,0.063]
[1744569207095,8.32148004,131.66,131.65,0.063]
[1744569207302,33.80263848,131.66,131.65,0.063]
[1744569207699,52.87877205,131.66,131.65,0.063]
[1744569212692,0.4418569,131.66,131.65,0.063]
[1744569212897,8.0371569,131.66,131.65,0.063]
[1744569213303,26.4418569,131.66,131.65,0.063]
[1744569214101,0.4418569,131.66,131.65,16.2145532]
[1744569215279,0.4418569,131.66,131.65,23.8103532]
[1744569217171,0.4418569,131.66,131.65,33.47376716]
[1744569217878,5.69e-05,131.66,131.65,52.26557759]
[1744569219076,5.69e-05,131.66,131.65,52.54990073]
[1744569219279,0.03,131.72,131.69,27.91021043]
[1744569219586,0.03,131.72,131.71,25.81496716]
[1744569220481,0.03,131.72,131.71,44.60677759]
[1744569221397,0.03,131.72,131.71,52.19917759]
[1744569221894,0.03,131.72,131.71,52.48350073]
[1744569222692,0.03,131.74,131.73,26.0]
[1744569223007,0.03,131.74,131.73,44.89110073]
[1744569223590,0.03,131.74,131.73,52.48230073]
[1744569225107,0.03,131.74,131.73,33.40616716]
[1744569225604,0.03,131.74,131.73,52.19797759]
[1744569226508,0.03,131.74,131.73,33.40616716]
[1744569229009,0.03,131.74,131.73,52.48230073]
[1744569229187,0.0001,131.74,131.73,52.48230073]
[1744569229885,0.0001,131.74,131.73,52.19797759]
[1744569230610,0.0001,131.74,131.73,33.40616716]